fUSD/lending_fUSD_20241220
["ID","MTS","AMOUNT","RATE_DAILY","PERIOD"]
[346107535,1734706275952,-500.0,0.00023835,4]
[346107536,1734706275963,-500.0,0.00023835,4]
[346107537,1734706275973,-500.0,0.00023835,4]
[346107538,1734706275983,-500.0,0.00023835,4]
[346107539,1734706275993,-500.0,0.00023835,4]
[346107540,1734706276003,-500.0,0.00023835,4]
[346107541,1734706276013,-500.0,0.00023835,4]
[346107542,1734706276026,-500.0,0.00023835,4]
[346107543,1734706276036,-500.0,0.00023835,4]
[346107544,1734706276046,-564.26,0.00023835,4]
[346107545,1734706276059,-500.0,0.00023835,4]
[346107546,1734706276068,-500.0,0.00023835,4]
[346107547,1734706276078,-500.0,0.00023835,4]
[346107548,1734706276088,-155.02061257,0.00023835,4]
[346107549,1734706276098,-500.0,0.00023835,4]
[346107550,1734706276109,-701.77,0.00023835,4]
[346107551,1734706276119,-683.55,0.00023835,4]
[346107552,1734706276130,-500.0,0.00023835,4]
[346107553,1734706276141,-500.0,0.00023835,4]
[346107554,1734706276151,-500.0,0.00023835,4]
[346107555,1734706276161,-500.0,0.00023835,4]
[346107556,1734706276172,-500.0,0.00023835,4]
[346107557,1734706276182,-603.36222808,0.00023835,4]
[346107558,1734706276192,-819.12,0.00023835,4]
[346107559,1734706276202,-551.65,0.00023835,4]
[346107560,1734706276212,-660.1,0.00023835,4]
[346107561,1734706276222,-500.0,0.00023835,4]
[346107562,1734706276233,-500.0,0.00023835,4]
[346107563,1734706276243,-500.0,0.00023835,4]
[346107564,1734706276254,-803.14,0.00023835,4]
[346107565,1734706276264,-500.0,0.00023835,4]
[346107566,1734706276275,-172.06849031,0.00023835,4]
[346107567,1734706276286,-745.51,0.00023835,4]
[346107568,1734706276296,-500.0,0.00023835,4]
[346107569,1734706276309,-500.0,0.00023835,4]
[346107570,1734706276320,-841.98,0.00023835,4]
[346107571,1734706276330,-500.0,0.00023835,4]
[346107572,1734706276341,-500.0,0.00023835,4]
[346107573,1734706276351,-637.76,0.00023835,4]
[346107574,1734706276362,-500.54,0.00023835,4]
[346107575,1734706276372,-500.0,0.00023835,4]
[346107576,1734706276383,-500.0,0.00023835,4]
[346107577,1734706276393,-500.0,0.00023835,4]
[346107578,1734706276402,-500.0,0.00023835,4]
[346107579,1734706276413,-500.0,0.00023835,4]
[346107580,1734706276423,-500.0,0.00023835,4]
[346107581,1734706276433,-1415.46,0.00023835,4]
[346107582,1734706276443,-500.0,0.00023835,4]
[346107583,1734706276454,-721.22,0.00023835,4]
[346107584,1734706276464,-606.15,0.00023835,4]
[346107585,1734706276475,-527.65,0.00023835,4]
[346107586,1734706276485,-1380.54,0.00023835,4]
[346107587,1734706276495,-500.0,0.00023835,4]
[346107588,1734706276505,-751.8,0.00023835,4]
[346107589,1734706276515,-619.03,0.00023835,4]
[346107590,1734706276526,-572.05,0.00023835,4]
[346107591,1734706276536,-669.68,0.00023835,4]
[346107592,1734706276546,-654.18,0.00023835,4]
[346107593,1734706276559,-689.33,0.00023835,4]
[346107594,1734706276569,-500.0,0.00023835,4]
[346107595,1734706276580,-500.0,0.00023835,4]
[346107596,1734706276590,-500.0,0.00023835,4]
[346107597,1734706276599,-500.0,0.00023835,4]
[346107598,1734706276610,-607.77,0.00023835,4]
[346107599,1734706276620,-500.0,0.00023835,4]
[346107600,1734706276631,-500.0,0.00023835,4]
[346107601,1734706276641,-554.27,0.00023835,4]
[346107602,1734706276651,-500.0,0.00023835,4]
[346107603,1734706276665,-307.25,0.00023835,4]
[346107604,1734706276675,-778.32,0.00023835,4]
[346107605,1734706276686,-500.0,0.00023835,4]
[346107606,1734706276697,-500.0,0.00023835,4]
[346107607,1734706276707,-508.44,0.00023835,4]
[346107608,1734706276717,-500.0,0.00023835,4]
[346107609,1734706276729,-500.0,0.00023835,4]
[346107610,1734706276739,-500.0,0.00023835,4]
[346107611,1734706276750,-500.0,0.00023835,4]
[346107612,1734706276760,-500.0,0.00023835,4]
[346107613,1734706276770,-500.0,0.00023835,4]
[346107614,1734706276780,-500.0,0.00023835,4]
[346107615,1734706276790,-500.0,0.00023835,4]
[346107616,1734706276800,-500.0,0.00023835,4]
[346107617,1734706276812,-500.0,0.00023835,4]
[346107618,1734706276823,-632.09,0.00023835,4]
[346107619,1734706276834,-511.2,0.00023835,4]
[346107620,1734706276844,-622.0,0.00023835,4]
[346107621,1734706276854,-454.49441441,0.00023835,4]
[346107622,1734706276864,-500.0,0.00023835,4]
[346107623,1734706276875,-500.0,0.00023835,4]
[346107624,1734706276885,-500.0,0.00023835,4]
[346107625,1734706276895,-500.0,0.00023835,4]
[346107626,1734706276906,-925.32,0.00023835,4]
[346107627,1734706276916,-500.0,0.00023835,4]
[346107628,1734706276926,-174.07337004,0.00023835,4]
[346107629,1734706276936,-500.0,0.00023835,4]
[346107630,1734706276946,-822.47,0.00023835,4]
[346107631,1734706276956,-500.0,0.00023835,4]
[346107632,1734706276967,-1757.83,0.00023835,4]
[346107633,1734706276977,-617.61,0.00023835,4]
[346107634,1734706276987,-1104.64,0.00023835,4]
[346107635,1734706276998,-502.16,0.00023835,4]
[346107636,1734706277008,-1801.99,0.00023835,4]
[346107637,1734706277019,-3000.0,0.00023835,2]
[346107638,1734706277030,-3000.0,0.00023835,2]
[346107639,1734706277040,-3000.0,0.00023835,2]
[346107640,1734706277050,-659.58,0.00023835,4]
[346107641,1734706277064,-1099.88,0.00023835,4]
[346107642,1734706277075,-500.0,0.00023835,4]
[346107643,1734706277085,-835.37,0.00023835,4]
[346107644,1734706277096,-1644.62,0.00023835,4]
[346107645,1734706277107,-511.31,0.00023835,4]
[346107646,1734706277118,-759.0,0.00023835,4]
[346107647,1734706277127,-1240.16,0.00023835,4]
[346107648,1734706277138,-575.67,0.00023835,4]
[346107649,1734706277148,-500.0,0.00023835,4]
[346107650,1734706277158,-3305.88,0.00023835,4]
[346107651,1734706277168,-567.37,0.00023835,4]
[346107652,1734706277179,-500.0,0.00023835,4]
[346107653,1734706277189,-150.76756353,0.00023835,4]
[346107654,1734706277199,-500.0,0.00023835,4]
[346107655,1734706277210,-2238.55,0.00023835,4]
[346107656,1734706277220,-500.0,0.00023835,4]
[346107657,1734706277230,-500.0,0.00023835,4]
[346107658,1734706277240,-1944.32,0.00023835,4]
[346107659,1734706277250,-500.0,0.00023835,4]
[346107660,1734706277260,-1038.55,0.00023835,4]
[346107661,1734706277271,-500.0,0.00023835,4]
[346107662,1734706277282,-3471.44,0.00023835,4]
[346107663,1734706277292,-500.0,0.00023835,4]
[346107664,1734706277307,-500.0,0.00023835,4]
[346107665,1734706277317,-500.0,0.00023835,4]
[346107666,1734706277328,-762.32,0.00023835,4]
[346107667,1734706277340,-1011.14,0.00023835,4]
[346107668,1734706277583,-543.28,0.00023835,4]
[346107669,1734706277593,-500.0,0.00023835,4]
[346107670,1734706277604,-500.0,0.00023835,4]
[346107671,1734706277614,-655.46,0.00023835,4]
[346107672,1734706277624,-981.9,0.00023835,4]
[346107673,1734706277634,-1847.66,0.00023835,4]
[346107674,1734706277644,-1676.58,0.00023835,4]
[346107675,1734706277653,-500.0,0.00023835,4]
[346107676,1734706277663,-1032.97,0.00023835,4]
[346107677,1734706277676,-500.0,0.00023835,4]
[346107678,1734706277687,-500.0,0.00023835,4]
[346107679,1734706277697,-628.86,0.00023835,4]
[346107680,1734706277707,-1541.57,0.00023835,4]
[346107681,1734706277716,-500.0,0.00023835,4]
[346107682,1734706277726,-2244.96,0.00023835,4]
[346107683,1734706277736,-500.0,0.00023835,4]
[346107684,1734706277748,-812.21,0.00023835,4]
[346107685,1734706277758,-500.0,0.00023835,4]
[346107686,1734706277768,-500.0,0.00023835,4]
[346107687,1734706277778,-500.0,0.00023835,4]
[346107688,1734706277788,-1809.6,0.00023835,4]
[346107689,1734706277798,-500.0,0.00023835,4]
[346107690,1734706277812,-500.0,0.00023835,4]
[346107691,1734706277822,-500.0,0.00023835,4]
[346107692,1734706277833,-727.11,0.00023835,4]
[346107693,1734706277843,-500.0,0.00023835,4]
[346107694,1734706277853,-500.0,0.00023835,4]
[346107695,1734706277863,-647.27,0.00023835,4]
[346107696,1734706277872,-2756.52,0.00023835,4]
[346107697,1734706277882,-828.43,0.00023835,4]
[346107698,1734706277891,-500.0,0.00023835,4]
[346107699,1734706277901,-696.14,0.00023835,4]
[346107700,1734706277910,-1639.23,0.00023835,4]
[346107701,1734706277920,-9762.21,0.00023835,4]
[346107702,1734706277930,-1144.67,0.00023835,4]
[346107703,1734706277940,-1051.74,0.00023835,4]
[346107704,1734706277950,-688.86,0.00023835,4]
[346107705,1734706277960,-531.8,0.00023835,4]
[346107706,1734706277970,-500.0,0.00023835,4]
[346107707,1734706277980,-500.0,0.00023835,4]
[346107708,1734706277990,-4042.65,0.00023835,4]
[346107709,1734706278000,-500.0,0.00023835,4]
[346107710,1734706278009,-913.81,0.00023835,4]
[346107711,1734706278019,-1657.48,0.00023835,4]
[346107712,1734706278029,-1139.77,0.00023835,4]
[346107713,1734706278039,-1298.5,0.00023835,4]
[346107714,1734706278049,-500.0,0.00023835,4]
[346107715,1734706278061,-2750.19,0.00023835,4]
[346107716,1734706278072,-500.0,0.00023835,4]
[346107717,1734706278082,-1719.51,0.00023835,4]
[346107718,1734706278093,-1028.29,0.00023835,4]
[346107719,1734706278104,-500.0,0.00023835,4]
[346107720,1734706278114,-1101.52,0.00023835,4]
[346107721,1734706278124,-1355.77,0.00023835,4]
[346107722,1734706278134,-500.0,0.00023835,4]
[346107723,1734706278144,-1403.12,0.00023835,4]
[346107724,1734706278154,-500.0,0.00023835,4]
[346107725,1734706278164,-500.0,0.00023835,4]
[346107726,1734706278175,-2413.98,0.00023835,4]
[346107727,1734706278185,-1096.54,0.00023835,4]
[346107728,1734706278195,-2100.15,0.00023835,4]
[346107729,1734706278206,-1447.53,0.00023835,4]
[346107730,1734706278216,-383.9310744,0.00023835,4]
[346107731,1734706278226,-1164.92,0.00023835,4]
[346107732,1734706278236,-500.0,0.00023835,4]
[346107733,1734706278247,-806.07,0.00023835,4]
[346107734,1734706278257,-500.0,0.00023835,4]
[346107735,1734706278266,-946.66,0.00023835,4]
[346107736,1734706278276,-500.0,0.00023835,4]
[346107737,1734706278286,-2139.52,0.00023835,4]
[346107738,1734706278296,-9726.29,0.00023835,4]
[346107739,1734706278307,-1420.63,0.00023835,4]
[346107740,1734706278318,-500.0,0.00023835,4]
[346107741,1734706278328,-1128.68,0.00023835,4]
[346107742,1734706278338,-500.0,0.00023835,4]
[346107743,1734706278348,-500.0,0.00023835,4]
[346107744,1734706278358,-2084.41,0.00023835,4]
[346107745,1734706278368,-1010.95,0.00023835,4]
[346107746,1734706278378,-500.0,0.00023835,4]
[346107747,1734706278388,-3050.34,0.00023835,4]
[346107748,1734706278398,-1673.65,0.00023835,4]
[346107749,1734706278408,-500.0,0.00023835,4]
[346107750,1734706278418,-500.0,0.00023835,4]
[346107751,1734706278431,-1176.91,0.00023835,4]
[346107752,1734706278440,-1000.0,0.00023835,4]
[346107753,1734706278450,-589.28,0.00023835,4]
[346107754,1734706278459,-439.19253723,0.00023835,4]
[346107755,1734706278469,-725.97,0.00023835,4]
[346107756,1734706278479,-500.0,0.00023835,4]
[346107757,1734706278489,-500.0,0.00023835,4]
[346107758,1734706278499,-500.0,0.00023835,4]
[346107759,1734706278509,-767.18,0.00023835,4]
[346107760,1734706278518,-1104.52,0.00023835,4]
[346107761,1734706278528,-500.0,0.00023835,4]
[346107762,1734706278542,-830.63,0.00023835,4]
[346107763,1734706278554,-934.5,0.00023835,4]
[346107764,1734706278564,-518.41,0.00023835,4]
[346107765,1734706278575,-517.06,0.00023835,4]
[346107766,1734706278584,-709.19,0.00023835,4]
[346107767,1734706278595,-681.89,0.00023835,4]
[346107768,1734706278605,-500.0,0.00023835,4]
[346107769,1734706278615,-1168.93,0.00023835,4]
[346107770,1734706278626,-529.62172143,0.00023835,4]
[346107771,1734706278636,-7786.57,0.00023835,4]
[346107772,1734706278645,-500.0,0.00023835,4]
[346107773,1734706278658,-500.0,0.00023835,4]
[346107774,1734706278667,-500.0,0.00023835,4]
[346107775,1734706278677,-1513.63,0.00023835,4]
[346107776,1734706278687,-1594.97,0.00023835,4]
[346107777,1734706278699,-4930.1,0.00023835,4]
[346107778,1734706278708,-500.0,0.00023835,4]
[346107779,1734706278718,-722.19,0.00023835,4]
[346107780,1734706278728,-1053.31,0.00023835,5]
[346107781,1734706278740,-570.24,0.00023835,4]
[346107782,1734706278750,-535.21,0.00023835,4]
[346107783,1734706278760,-704.71,0.00023835,4]
[346107784,1734706278770,-500.0,0.00023835,4]
[346107785,1734706278780,-661.16,0.00023835,4]
[346107786,1734706278791,-871.46,0.00023835,4]
[346107787,1734706278801,-500.0,0.00023835,4]
[346107788,1734706278814,-827.8,0.00023835,4]
[346107789,1734706278824,-1165.6,0.00023835,4]
[346107790,1734706278834,-1055.56,0.00023835,4]
[346107791,1734706278844,-500.0,0.00023835,4]
[346107792,1734706278854,-521.46040448,0.00023835,4]
[346107793,1734706278864,-821.14,0.00023835,4]
[346107794,1734706278874,-500.0,0.00023835,4]
[346107795,1734706278885,-500.0,0.00023835,4]
[346107796,1734706278895,-1326.77,0.00023835,4]
[346107797,1734706278906,-500.0,0.00023835,4]
[346107798,1734706278915,-500.0,0.00023835,4]
[346107799,1734706278925,-500.0,0.00023835,4]
[346107800,1734706278934,-535.94,0.00023835,4]
[346107801,1734706278944,-625.47,0.00023835,4]
[346107802,1734706278954,-500.0,0.00023835,4]
[346107803,1734706278963,-500.0,0.00023835,4]
[346107804,1734706278972,-500.0,0.00023835,4]
[346107805,1734706278983,-1263.28,0.00023835,4]
[346107806,1734706278993,-595.16536514,0.00023835,4]
[346107807,1734706279002,-794.37,0.00023835,4]
[346107808,1734706279012,-500.0,0.00023835,4]
[346107809,1734706279022,-500.0,0.00023835,4]
[346107810,1734706279032,-511.24,0.00023835,4]
[346107811,1734706279042,-333.36798513,0.00023835,4]
[346107812,1734706279052,-500.0,0.00023835,4]
[346107813,1734706279065,-150.0,0.00023841,4]
[346107814,1734706279076,-150.0,0.00023842,2]
[346107815,1734706279085,-19582.5333206,0.00023844,3]
[346107816,1734706279095,-150.0,0.00023848,2]
[346107817,1734706279105,-150.0,0.00023851,2]
[346107818,1734706279115,-150.0,0.00023856,2]
[346107819,1734706279126,-991.98,0.0002386,4]
[346107820,1734706279135,-500.0,0.0002387,4]
[346107821,1734706279145,-500.0,0.0002387,4]
[346107822,1734706279154,-150.0,0.00023878,2]
[346107823,1734706279164,-78156.32,0.00023879,2]
[346107824,1734706279174,-1000.0,0.00023879,2]
[346107825,1734706279183,-1000.0,0.00023879,4]
[346107826,1734706279194,-1000.0,0.00023879,6]
[346107827,1734706279204,-1000.0,0.00023879,8]
[346107828,1734706279215,-150.0,0.00023879,2]
[346107829,1734706279226,-2305336.26346534,0.0002388,2]
[346107830,1734706279236,-13209.09024579,0.0002388,2]
[346107831,1734706279246,-5665.8879,0.0002388,5]
[346107832,1734706279256,-4222.70735289,0.0002388,7]
[346107833,1734706279265,-2000.0,0.0002388,2]
[346107834,1734706279275,-200.0,0.0002388,2]
[346107835,1734706279285,-200.0,0.0002388,2]
[346107836,1734706279295,-200.0,0.0002388,2]
[346107837,1734706279306,-4869.763873,0.00023884,2]
[346107838,1734706279316,-1906.2654572,0.00023884,2]
[346107839,1734706279327,-1329.7134069,0.00023884,2]
[346107840,1734706279338,-800.0,0.0002389,2]
[346107841,1734706279348,-500.0,0.000239,7]
[346107842,1734706279358,-500.0,0.000239,7]
[346107843,1734706279368,-500.0,0.000239,7]
[346107844,1734706279378,-500.0,0.000239,7]
[346107845,1734706279387,-500.0,0.000239,7]
[346107846,1734706279397,-500.0,0.000239,7]
[346107847,1734706279407,-500.0,0.000239,7]
[346107848,1734706279417,-500.0,0.000239,7]
[346107849,1734706279427,-500.0,0.000239,7]
[346107850,1734706279437,-500.0,0.000239,7]
[346107851,1734706279447,-500.0,0.000239,7]
[346107852,1734706279458,-500.0,0.000239,7]
[346107853,1734706279469,-500.0,0.000239,7]
[346107854,1734706279482,-500.0,0.000239,7]
[346107855,1734706279492,-459.85,0.000239,7]
[346107856,1734706279502,-500.0,0.000239,7]
[346107857,1734706279512,-185.91816351,0.000239,2]
[346107858,1734706279522,-1000.0,0.000239,2]
[346107859,1734706279532,-1753.0,0.000239,8]
[346107860,1734706279541,-151.51309141,0.000239,7]
[346107861,1734706279551,-151.51309141,0.000239,7]
[346107862,1734706279564,-151.51309141,0.000239,7]
[346107863,1734706279575,-151.51309141,0.000239,7]
[346107864,1734706279585,-151.51,0.000239,7]
[346107865,1734706279594,-162.33545509,0.000239,7]
[346107866,1734706279604,-162.33545509,0.000239,7]
[346107867,1734706279613,-162.33545509,0.000239,7]
[346107868,1734706279623,-162.33545509,0.000239,7]
[346107869,1734706279633,-162.33545509,0.000239,7]
[346107870,1734706279642,-162.33545509,0.000239,7]
[346107871,1734706279652,-162.33,0.000239,7]
[346107872,1734706279662,-169.65616092,0.000239,2]
[346107873,1734706279673,-3972.46632428,0.000239,2]
[346107874,1734706279683,-1159.55727502,0.000239,2]
[346107875,1734706279692,-150.0,0.00023918,4]
[346107876,1734706279701,-150.0,0.00023918,4]
[346107877,1734706279711,-150.0,0.00023918,4]
[346107878,1734706279720,-150.0,0.00023918,4]
[346107879,1734706279730,-335304.0,0.00023922,2]
[346107880,1734706279740,-3000.0,0.0002394,2]
[346107881,1734706279749,-46848.14865437,0.0002398,6]
[346107882,1734706279759,-4088.548279,0.00023984,2]
[346107883,1734706279769,-3307.332685,0.00023984,2]
[346107884,1734706279778,-2526.117091,0.00023984,2]
[346107885,1734706279788,-1744.901497,0.00023984,2]
[346107886,1734706279798,-2029.5703604,0.00023984,2]
[346107887,1734706279811,-2152.8752636,0.00023984,2]
[346107888,1734706279821,-2276.1801668,0.00023984,2]
[346107889,1734706279830,-2399.48507,0.00023984,2]
[346107890,1734706279840,-1234.7307571,0.00023984,2]
[346107891,1734706279849,-1139.7481073,0.00023984,2]
[346107892,1734706279859,-1044.7654575,0.00023984,2]
[346107893,1734706279868,-949.7828077,0.00023984,2]
[346107894,1734706279878,-998.14924011,0.00023999,2]
[346107895,1734706279887,-150.0,0.00023999,2]
[346107896,1734706279897,-150.0,0.00023999,2]
[346107897,1734706279907,-150.0,0.00023999,2]
[346107898,1734706279916,-150.0,0.00023999,2]
[346107899,1734706279925,-150.0,0.00023999,2]
[346107900,1734706279935,-150.0,0.00023999,2]
[346107901,1734706279945,-232.30531152,0.00023999,2]
[346107902,1734706279955,-13498.22396169,0.00024,2]
[346107903,1734706279964,-196.65,0.00024,3]
[346107904,1734706279974,-3700.0,0.00024,2]
[346107905,1734706280051,-300.0,0.00024,10]
[346107906,1734706280066,-158033.67285833,0.00024,5]
[346107907,1734706280076,-500.0,0.00024,2]
[346107908,1734706280086,-500.0,0.00024,2]
[346107909,1734706280095,-503.0,0.00024,2]
[346107910,1734706280104,-500.0,0.00024,2]
[346107911,1734706280113,-500.0,0.00024,2]
[346107912,1734706280123,-500.0,0.00024,2]
[346107913,1734706280133,-500.0,0.00024,2]
[346107914,1734706280142,-65000.0,0.00024,9]
[346107915,1734706280152,-10000.0,0.00024,2]
[346107916,1734706280161,-351028.24725023,0.00024,5]
[346107917,1734706280171,-3500928.85974092,0.00024,2]
[346107918,1734706280180,-1018.0,0.00024,5]
[346107919,1734706280191,-10000.0,0.00024,2]
[346107920,1734706280203,-1144404.10493825,0.00024,5]
[346107921,1734706280213,-4606.0,0.00024,2]
[346107922,1734706280222,-13748.0,0.00024,2]
[346107923,1734706280232,-1000.0,0.00024,120]
[346107924,1734706280242,-21702.0,0.00024,7]
[346107925,1734706280252,-8093.38978572,0.00024,2]
[346107926,1734706280261,-5000.0,0.00024,2]
[346107927,1734706280271,-5000.0,0.00024,2]
[346107928,1734706280281,-5000.0,0.00024,2]
[346107929,1734706280290,-4499.0,0.00024,2]
[346107930,1734706280300,-10000.0,0.00024,2]
[346107931,1734706280312,-10000.0,0.00024,2]
[346107932,1734706280322,-20471.86022277,0.00024,2]
[346107933,1734706280332,-30172.11475918,0.00024,2]
[346107934,1734706280342,-975.24405875,0.00024,2]
[346107935,1734706280352,-739.61,0.00024,2]
[346107936,1734706280361,-4993767.25945222,0.00024,5]
[346107937,1734706280730,-1151.11843996,0.00024,5]
[346107938,1734706280742,-955.64,0.00024,5]
[346107939,1734706280988,-671.83013979,0.00021917,4]
[346107940,1734706281011,-32.35986021,0.00021917,4]
[346107941,1734706281020,-500.0,0.00022191,2]
[346107942,1734706281029,-552.89,0.00022191,4]
[346107943,1734706281038,-704.19,0.00022191,4]
[346107944,1734706281047,-368.87741872,0.00022465,2]
[346107945,1734706281061,-131.12258128,0.00022465,2]
[346107946,1734706281070,-704.19,0.00022465,4]
[346107947,1734706281080,-500.0,0.00022739,2]
[346107948,1734706281089,-704.19,0.00022739,4]
[346107949,1734706281098,-1471.35,0.00023013,4]
[346107950,1734706281108,-500.0,0.00023013,2]
[346107951,1734706281117,-704.19,0.00023013,4]
[346107952,1734706281127,-718.66738302,0.00023276,2]
[346107953,1734706281136,-1471.35,0.00023287,4]
[346107954,1734706281145,-500.0,0.00023287,2]
[346107955,1734706281155,-704.19,0.00023287,4]
[346107956,1734706281164,-1471.35,0.00023561,4]
[346107957,1734706281174,-500.0,0.00023561,2]
[346107958,1734706281183,-704.19,0.00023561,4]
[346107959,1734706281192,-730.22008151,0.00023835,4]
[346107960,1734706281340,-741.12991849,0.00023835,4]
[346107961,1734706281350,-500.0,0.00023835,2]
[346107962,1734706281359,-1191.51057467,0.00024,5]
[346107963,1734706281416,-2768.64281435,0.00024,5]
[346107964,1734706281721,-644.81600148,0.00022465,2]
[346107965,1734706281750,-246.5904332,0.00021916,2]
[346107966,1734706281760,-162.18399852,0.00022465,2]
[346107967,1734706281770,-704.19,0.00023835,4]
[346107968,1734706281779,-3694120.78429936,0.00024,5]
[346107969,1734706281870,-3320.4803989,0.00024,5]
[346107970,1734706282138,-296.51633852,0.00022913,4]
[346107971,1734706282147,-203.66,0.00023317,2]
[346107972,1734706282157,-15.68304028,0.00023432,2]
[346107973,1734706282168,-521.56177382,0.00023432,2]
[346107974,1734706282198,-181.42256892,0.00023432,2]
[346107975,1734706282208,-49817.93033057,0.00024,5]
[346107976,1734706282219,-636.83149052,0.00024,5]
[346107977,1734706282230,-2871.9,0.00024,5]
[346107978,1734706282242,-16740.00000005,0.00024,5]
[346107982,1734706436997,193.99,0.00010137,2]
[346107984,1734706588454,5604.2828028,0.0001,2]
[346107986,1734706742064,156.61,0.00018797,30]
[346107987,1734706742409,156.61,0.0002207,30]
[346108021,1734707431870,-450.0,0.00013,2]
[346108022,1734707431880,-176.04,0.00013699,2]
[346108023,1734707431889,-500.0,0.00015,2]
[346108024,1734707431899,-193.99,0.00016813,2]
[346108025,1734707431908,-58.63431652,0.00016865,2]
[346108026,1734707431919,-1179.37568348,0.00016865,2]
[346108027,1734707431928,-550.0,0.00017,2]
[346108028,1734707431937,-450.0,0.00017177,2]
[346108029,1734707431946,-1440.8436616,0.00017657,2]
[346108030,1734707431958,-520.41,0.00017657,2]
[346108031,1734707431990,-47.7463384,0.00017657,2]
[346108032,1734707431999,-1264.0,0.00017657,2]
[346108033,1734707432008,-150.0,0.00017657,2]
[346108034,1734707432025,-565.0,0.00017657,2]
[346108035,1734707432034,-498.2536621,0.00017657,2]
[346108036,1734707432045,-134.7463379,0.00017657,2]
[346108037,1734707432055,-1897.0,0.00017657,2]
[346108038,1734707432064,-280.2536621,0.00017657,2]
[346108039,1734707432086,-623.44006736,0.00017657,2]
[346108083,1734707438070,-2863.30627054,0.00017657,2]
[346108084,1734707438081,-817.0,0.00017657,2]
[346108085,1734707438090,-929.0,0.00017657,2]
[346108086,1734707438104,-1255.0,0.00017657,2]
[346108087,1734707438118,-535.0,0.00017657,2]
[346108088,1734707438127,-3633.0,0.00017657,2]
[346108089,1734707438138,-150.0,0.00017657,2]
[346108090,1734707438147,-4252.488,0.00017657,2]
[346108091,1734707438157,-3885.0,0.00017657,2]
[346108092,1734707438167,-1170.0,0.00017657,2]
[346108093,1734707438177,-549.03879288,0.00017885,2]
[346108094,1734707438187,-280.56,0.00018256,2]
[346108095,1734707438196,-280.56,0.00018261,2]
[346108096,1734707438205,-280.56,0.00018266,2]
[346108097,1734707438214,-280.56,0.00018271,2]
[346108098,1734707438224,-280.56,0.00018275,2]
[346108099,1734707438233,-280.56,0.0001828,2]
[346108100,1734707438242,-280.56,0.00018285,2]
[346108101,1734707438251,-280.56,0.0001829,2]
[346108102,1734707438261,-280.56,0.00018295,2]
[346108103,1734707438270,-280.56,0.00018299,2]
[346108104,1734707438280,-280.56,0.00018304,2]
[346108105,1734707438291,-280.56,0.00018309,2]
[346108106,1734707438301,-280.56,0.00018314,2]
[346108108,1734707438310,-280.56,0.00018319,2]
[346108110,1734707438320,-280.56,0.00018323,2]
[346108112,1734707438329,-280.56,0.00018328,2]
[346108114,1734707438338,-280.56,0.00018333,2]
[346108116,1734707438348,-280.56,0.00018338,2]
[346108117,1734707438357,-280.56,0.00018343,2]
[346108118,1734707438367,-280.56,0.00018347,2]
[346108119,1734707438377,-352.82,0.00018524,2]
[346108120,1734707438386,-194.23,0.00018573,2]